bitfinex/quotes_ETHUSD_20241122
["timestamp","ask_amount","ask_price","bid_price","bid_amount"]
[1732319538302,5.57714,3320.1,3319.3,0.7819]
[1732319538777,5.0,3319.8,3319.4,0.05270904]
[1732319547489,0.7714,3319.7,3319.4,0.05270904]
[1732319547695,5.0,3319.5,3319.4,0.05270904]
[1732319547867,5.0,3319.5,3318.9,0.7819]
[1732319548192,5.0,3319.5,3319.0,0.05277191]
[1732319549768,5.0,3319.5,3318.6,0.7819]
[1732319549993,0.7714,3319.4,3318.7,0.05286956]
[1732319550155,0.5,3319.4,3318.7,0.05286956]
[1732319550360,0.7714,3319.3,3318.3,0.7819]
[1732319550604,5.0,3319.1,3318.4,0.05286956]
[1732319550786,5.57714,3319.1,3318.4,0.05286956]
[1732319551100,5.0,3319.1,3318.4,0.05286956]
[1732319552602,5.0,3319.0,3318.4,0.05286956]
[1732319554503,0.7518,3318.9,3318.4,0.05286956]
[1732319554668,5.0,3318.5,3318.4,0.05286956]
[1732319554873,5.0,3318.5,3318.0,0.7967]
[1732319555075,4.97501363,3318.5,3318.0,0.7967]
[1732319555300,4.97501363,3318.5,3318.1,0.05296723]
[1732319555476,5.0,3318.3,3318.1,0.05296723]
[1732319555683,5.0,3318.3,3318.0,0.7967]
[1732319555910,5.0,3318.3,3318.2,0.05296723]
[1732319556286,5.0,3318.3,3318.0,0.7967]
[1732319556489,5.0,3318.4,3318.0,0.7967]
[1732319556694,5.0,3318.4,3318.1,0.05296723]
[1732319557619,5.0,3318.3,3318.1,0.05296723]
[1732319558478,5.0,3318.4,3318.1,0.05296723]
[1732319559522,5.0,3318.3,3318.1,0.05296723]
[1732319560418,5.7518,3318.3,3318.1,0.05296723]
[1732319560714,6.32698,3318.3,3318.1,0.05296723]
[1732319560918,6.32698,3318.3,3317.6,0.7967]
[1732319561279,6.32698,3318.3,3317.7,0.05307831]
[1732319561489,5.0,3318.2,3317.7,0.05307831]
[1732319561739,0.632698,3318.1,3317.2,0.7967]
[1732319561880,5.0,3318.2,3317.2,0.7967]
[1732319562279,5.0,3318.2,3317.3,0.05310776]
[1732319562514,5.0,3317.9,3317.3,0.05310776]
[1732319563714,5.0,3317.7,3317.3,0.05310776]
[1732319564340,5.0,3317.7,3317.2,0.7967]
[1732319564539,5.0,3317.6,3317.3,0.05323493]
[1732319565549,5.0,3317.7,3317.3,0.05323493]
[1732319566511,5.0,3317.9,3317.3,0.05323493]
[1732319569644,5.0,3317.6,3317.3,0.05323493]
[1732319570663,5.0,3317.8,3317.3,0.05323493]
[1732319572661,5.0,3317.9,3317.3,0.05323493]
[1732319575267,5.0,3317.9,3317.4,0.7828]
[1732319575624,5.0,3317.9,3317.5,0.05152038]
[1732319578668,4.99478,3317.9,3317.5,0.05152038]
[1732319579867,5.0,3317.9,3317.6,0.7828]
[1732319580229,5.0,3317.9,3317.7,0.05153645]
[1732319580566,5.0,3318.2,3317.7,0.05153645]
[1732319582648,5.0,3318.4,3317.7,0.05153645]
[1732319583637,5.0,3318.4,3317.8,0.21756821]
[1732319583835,5.0,3318.4,3317.7,0.4349701]
[1732319584157,5.0,3318.4,3317.8,0.21756286]
[1732319584465,5.0,3318.4,3317.7,0.38343365]
[1732319584466,5.0,3318.4,3317.9,0.05150967]
[1732319584668,5.0,3318.4,3318.0,0.7828]
[1732319584873,5.0,3318.4,3318.3,1.30421167]
[1732319585047,5.0,3318.4,3318.3,2.08701167]
[1732319585246,5.0,3318.4,3318.3,2.35236142]
[1732319585637,5.0,3318.9,3318.3,2.56982128]
[1732319585839,5.0,3318.9,3318.3,2.13850929]
[1732319586135,5.0,3318.9,3318.4,0.21744602]
[1732319586341,5.0,3318.9,3318.5,0.05135972]
[1732319586543,5.0,3319.1,3318.3,2.3008626]
[1732319586752,5.0,3319.1,3318.4,0.05135972]
[1732319587576,5.0,3318.9,3318.4,0.05135972]
[1732319588533,5.0,3319.0,3318.4,0.05135972]
[1732319589576,5.0,3319.1,3318.4,0.05135972]
[1732319590168,5.0,3319.1,3318.5,0.7828]
[1732319590362,5.0,3319.1,3318.6,0.05135972]
[1732319590569,5.0,3319.0,3318.6,0.05135972]
[1732319594592,0.8306,3318.9,3318.6,0.05135972]
[1732319594887,0.58306,3318.8,3318.1,0.8208]
[1732319595249,0.8306,3318.9,3318.2,0.05132893]
[1732319595596,5.0,3318.7,3318.2,0.05132893]
[1732319596548,5.0,3318.8,3318.2,0.05132893]
[1732319596885,5.0,3318.8,3318.3,0.8208]
[1732319597291,5.0,3318.8,3318.4,0.05135302]
[1732319597594,5.0,3319.1,3318.5,0.8208]
[1732319597749,0.5,3319.0,3318.5,0.8208]
[1732319597949,5.0,3319.1,3318.6,0.05128741]
[1732319598457,5.0,3319.1,3318.7,0.7888]
[1732319598655,5.0,3319.5,3318.7,0.84008741]
[1732319598891,5.0,3319.5,3319.0,0.7888]
[1732319599267,5.0,3319.5,3319.2,0.7888]
[1732319599465,5.0,3319.7,3319.2,0.7888]
[1732319599875,6.2835,3319.7,3319.3,0.0512486]
[1732319600252,6.2835,3319.7,3319.2,0.7888]
[1732319600688,5.0,3319.6,3319.3,0.0512486]
[1732319600899,0.62835,3319.5,3319.3,0.0512486]
[1732319601058,0.62835,3319.5,3318.9,0.7888]
[1732319601454,0.62835,3319.5,3319.0,0.0512486]
[1732319602603,0.62835,3319.5,3318.7,0.7888]
[1732319602604,5.0,3319.1,3318.7,0.7888]
[1732319603867,5.0,3319.1,3318.4,0.00650786]
[1732319604091,5.0,3319.1,3318.5,0.7888]
[1732319604603,5.0,3318.6,3318.4,0.00650786]
[1732319605296,5.5,3318.6,3318.4,0.00650786]
[1732319606606,5.0,3318.6,3318.4,0.00650786]
[1732319607690,5.0,3318.7,3318.4,0.00650786]
[1732319608990,5.0,3318.7,3318.5,0.05132221]
[1732319609381,0.7835,3318.6,3318.5,0.05132221]
[1732319609583,5.7835,3318.6,3318.4,0.00650786]
[1732319610618,5.0,3318.5,3318.4,0.00650786]
[1732319611547,5.0,3318.8,3318.4,0.0578408]
[1732319611679,5.0,3318.8,3318.4,0.00650786]
[1732319611872,5.0,3318.8,3318.5,0.05132892]
[1732319612185,5.0,3318.8,3318.6,0.7888]
[1732319612594,5.0,3319.0,3318.7,0.05132892]
[1732319613212,5.0,3319.0,3318.8,0.7513]
[1732319613421,5.0,3319.0,3318.9,0.05130483]
[1732319613711,5.0,3319.5,3318.9,0.05130483]
[1732319615485,5.0,3319.4,3318.9,0.05130483]
[1732319620228,5.7552,3319.4,3318.9,0.05130483]
[1732319620737,5.0,3319.2,3318.9,0.05130483]
[1732319621191,5.0,3319.2,3318.5,0.8287]
[1732319621396,5.0,3319.2,3318.6,0.05122319]
[1732319621692,5.0,3319.1,3318.6,0.05122319]
[1732319622740,5.0,3319.2,3318.6,0.05122319]
[1732319623740,5.0,3319.1,3318.6,0.05122319]
[1732319624620,5.0,3319.0,3318.6,0.05122319]
[1732319625540,5.0,3318.9,3318.6,0.05122319]
[1732319626224,0.7552,3318.8,3318.6,0.05122319]
[1732319626422,5.5,3318.9,3318.4,0.00650786]
[1732319626733,5.0,3318.8,3318.5,0.05122319]
[1732319626906,5.5,3318.8,3318.5,0.05122319]
[1732319627544,5.0,3318.7,3318.5,0.05122319]
[1732319628732,5.0,3318.8,3318.5,0.05122319]
[1732319629728,5.0,3319.0,3318.5,0.05122319]
[1732319632540,5.0,3318.9,3318.5,0.05122319]
[1732319637537,5.0,3319.0,3318.5,0.05122319]
[1732319638565,5.0,3318.9,3318.5,0.05122319]
[1732319639341,5.0,3318.9,3318.5,0.27024858]
[1732319640551,5.0,3318.8,3318.5,0.05122319]
[1732319642580,5.0,3318.9,3318.5,0.05122319]
[1732319643585,5.0,3318.8,3318.5,0.05122319]
[1732319644781,5.0,3318.9,3318.5,0.05122319]
[1732319645699,5.0,3318.9,3318.5,0.07629943]
[1732319647676,5.0,3318.8,3318.5,0.07629943]
[1732319648711,5.0,3319.0,3318.5,0.07629943]
[1732319649566,0.7552,3319.3,3318.5,0.07629943]
[1732319649567,5.0,3318.8,3318.5,0.07629943]
[1732319650799,5.0,3318.7,3318.5,0.07629943]
[1732319651570,5.0,3319.1,3318.6,0.8312]
[1732319651966,5.0,3319.1,3318.7,0.04954242]
[1732319652668,5.0,3319.0,3318.7,0.04954242]
[1732319653066,5.0,3319.0,3318.6,0.8312]
[1732319653513,5.0,3319.1,3318.6,0.8312]
[1732319653969,5.0,3319.1,3318.7,0.04951967]
[1732319656584,5.0,3319.2,3318.7,0.04951967]
[1732319656997,5.0,3319.2,3318.7,1.35334255]
[1732319657309,5.0,3319.2,3318.8,0.7607]
[1732319657683,5.0,3319.2,3318.9,0.04950898]
[1732319660513,5.0,3319.0,3318.9,0.04950898]
[1732319661028,5.5,3319.0,3318.9,0.04950898]
[1732319661191,5.0,3319.0,3318.9,0.04950898]
[1732319661393,5.0,3319.0,3318.9,0.04951299]
[1732319661709,5.0,3319.0,3318.7,1.30382288]
[1732319661911,5.0,3319.0,3318.9,0.04951166]
[1732319662130,5.0,3319.0,3318.7,1.30382288]
[1732319662426,5.0,3319.0,3318.9,0.04951166]
[1732319662624,5.0,3319.1,3318.7,1.30382288]
[1732319663003,5.0,3319.1,3318.8,0.04951166]
[1732319663387,5.0,3319.1,3318.9,0.04951166]
[1732319663611,5.0,3319.0,3318.9,0.04951166]
[1732319663816,5.5,3319.0,3318.6,0.7607]
[1732319664006,5.0,3319.0,3318.9,0.04950363]
[1732319664206,5.0,3319.0,3318.6,0.7607]
[1732319664825,5.0,3319.0,3318.7,0.04950363]
[1732319665599,5.0,3318.9,3318.7,0.04950363]
[1732319666731,5.0,3318.9,3318.5,0.02507624]
[1732319666936,5.0,3318.9,3318.8,0.04950363]
[1732319667241,5.0,3318.9,3318.5,0.02507624]
[1732319667535,5.0,3318.9,3318.6,0.04950363]
[1732319668819,5.0,3318.9,3318.7,0.7607]
[1732319669218,5.0,3318.9,3318.8,0.04954645]
[1732319669533,0.7867,3319.3,3318.7,0.7607]
[1732319669534,5.0,3319.0,3318.7,0.7607]
[1732319669846,5.0,3319.0,3318.8,0.04954645]
[1732319670195,5.0,3319.0,3318.7,0.7607]
[1732319670828,5.0,3319.0,3318.8,0.04954645]
[1732319671195,5.0,3319.0,3318.7,0.7607]
[1732319671598,5.0,3319.0,3318.8,0.04954645]
[1732319671803,5.0,3319.0,3318.7,0.7607]
[1732319672131,5.0,3319.0,3318.8,0.04954645]
[1732319672497,5.0,3319.1,3318.7,0.7607]
[1732319672793,5.0,3319.1,3318.9,0.04954645]
[1732319673131,5.0,3319.1,3319.0,0.04954645]
[1732319673497,5.0,3319.0,3318.7,0.7607]
[1732319673806,4.99115888,3319.0,3318.7,0.7607]
[1732319674535,5.0,3319.0,3318.7,0.7607]
[1732319674995,5.0,3319.0,3318.5,0.798]
[1732319675613,5.0,3318.8,3318.5,0.798]
[1732319677295,5.0,3318.8,3318.6,0.04952771]
[1732319677552,5.0,3318.8,3318.5,0.798]
[1732319677900,5.0,3318.8,3318.6,0.04952771]
[1732319678417,5.0,3318.8,3318.5,0.798]
[1732319680851,5.0,3318.8,3318.4,0.10833074]
[1732319681499,5.0,3318.8,3318.5,0.04953439]
[1732319681702,5.5,3318.8,3318.4,0.10833074]
[1732319683637,5.5,3318.8,3318.4,0.90633074]
[1732319692075,6.2642,3318.8,3318.4,0.90633074]
[1732319692775,6.2642,3318.8,3318.4,0.10833074]
[1732319693352,5.7642,3318.8,3318.4,0.10833074]
[1732319693554,5.76365552,3318.8,3318.4,0.10833074]
[1732319694379,5.76365552,3318.8,3318.5,0.04951967]
[1732319694576,5.7642,3318.8,3318.5,0.04951967]
[1732319694984,5.7642,3318.8,3318.4,0.10833074]
[1732319695339,5.7642,3318.8,3318.2,3.7612]
[1732319695579,5.0,3318.6,3318.5,0.049521]
[1732319695877,5.0,3318.6,3318.2,1.13732]
[1732319695878,5.0,3318.6,3318.2,0.7612]
[1732319696536,5.0,3318.6,3318.3,0.049521]
[1732319696965,5.0,3318.6,3318.2,0.7612]
[1732319697169,5.0,3318.6,3318.4,0.04951967]
[1732319697395,5.0,3318.6,3318.0,1.30382288]
[1732319697543,5.0,3318.6,3318.5,0.04951967]
[1732319697743,5.0,3318.6,3318.0,1.30382288]
[1732319697951,5.0,3318.6,3318.5,0.04951967]
[1732319698150,5.0,3318.6,3317.9,0.7612]
[1732319698356,5.0,3318.6,3318.5,0.04951967]
[1732319698563,5.0,3318.6,3317.9,0.7612]
[1732319698782,0.7511,3318.5,3317.7,0.7612]
[1732319698978,0.7511,3318.5,3318.0,0.04951967]
[1732319699200,0.7511,3318.5,3317.7,0.7612]
[1732319699400,0.7511,3318.5,3318.1,0.04951967]
[1732319699555,0.7511,3318.5,3317.8,1.30382288]
[1732319699758,0.7511,3318.5,3318.2,0.04951967]
[1732319700002,0.7511,3318.5,3317.8,1.30382288]
[1732319700203,0.7511,3318.5,3318.3,0.04951967]
[1732319700400,0.7511,3318.5,3317.8,1.30382288]
[1732319700657,0.7511,3318.5,3318.4,0.04951967]
[1732319701072,0.7511,3318.5,3318.0,1.30382288]
[1732319701270,0.7511,3318.5,3318.1,0.04957723]
[1732319701665,5.7511,3318.5,3318.1,0.04957723]
[1732319701877,5.7511,3318.5,3318.0,1.30382288]
[1732319702459,5.0,3318.5,3318.1,0.7612]
[1732319703759,4.97492376,3318.5,3318.1,0.7612]
[1732319704697,5.0,3318.5,3318.1,0.7612]
[1732319706616,5.0,3318.4,3318.1,0.7612]
[1732319706819,5.0,3318.4,3318.2,0.04957723]
[1732319707230,5.0,3318.4,3318.2,1.35340011]
[1732319707518,5.0,3318.4,3318.3,0.21146001]
[1732319707817,5.7511,3318.9,3318.3,0.21146001]
[1732319708021,5.7511,3318.9,3318.3,0.26103724]
[1732319708820,5.0,3318.9,3318.7,1.30382288]
[1732319709181,5.0,3318.9,3318.5,1.30382288]
[1732319709524,5.0,3318.9,3318.6,0.20650229]
[1732319709739,5.0,3319.3,3318.6,0.20650229]
[1732319709932,5.0,3319.3,3318.7,0.04957723]
[1732319710432,5.0,3319.3,3318.4,0.7612]
[1732319710712,5.0,3319.0,3318.8,0.04957723]
[1732319710872,5.0,3319.0,3318.5,1.30382288]
[1732319711278,5.0,3319.0,3318.6,0.04957723]
[1732319711726,5.0,3319.2,3318.9,1.30382288]
[1732319711921,5.0,3319.2,3319.0,0.0494996]
[1732319712077,5.0,3319.2,3318.7,2.06502288]
[1732319712284,5.0,3319.2,3318.7,2.27152517]
[1732319712479,5.0,3319.2,3318.8,0.0494996]
[1732319712684,5.0,3319.6,3318.7,2.27152517]
[1732319712891,5.0,3319.6,3318.8,0.0494996]
[1732319713540,5.0,3319.5,3318.8,0.0494996]
[1732319713846,5.0,3319.5,3318.8,0.28160208]
[1732319714616,5.0,3319.4,3318.8,0.28160208]
[1732319714824,5.0,3319.4,3318.8,0.0494996]
[1732319715744,0.7948,3319.3,3318.8,0.0494996]
[1732319715951,0.7948,3319.3,3318.7,0.7612]
[1732319716150,0.7948,3319.3,3318.8,0.0494996]
[1732319716305,0.7948,3319.3,3318.7,0.7612]
[1732319716306,0.57948,3319.2,3318.7,0.7612]
[1732319716638,0.57948,3319.2,3318.8,0.0494996]
[1732319716946,0.57948,3319.2,3318.7,0.7612]
[1732319717152,0.57948,3319.2,3318.8,0.0494996]
[1732319717451,5.0,3319.4,3318.8,1.30382288]
[1732319717652,5.0,3319.4,3318.9,0.0494996]
[1732319718252,5.0,3319.4,3319.0,0.7739]
[1732319718455,5.0,3319.4,3319.0,2.12722248]
[1732319718637,5.0,3319.6,3319.0,2.12722248]
[1732319719318,5.5,3319.6,3319.0,0.8233996]
[1732319719651,5.0,3319.4,3319.0,0.8233996]
[1732319721648,4.95,3319.4,3319.0,2.12722248]
[1732319721847,4.95,3319.4,3319.0,2.33994473]
[1732319722546,5.0,3319.6,3319.0,2.33994473]
[1732319722760,5.0,3319.6,3319.0,2.12722248]
[1732319727597,5.0,3319.5,3319.0,2.12722248]
[1732319728768,5.0,3319.5,3319.0,0.8233996]
[1732319729744,5.0,3319.4,3319.0,0.8233996]
[1732319732070,5.7598,3319.4,3319.0,0.0494996]
[1732319732271,6.2598,3319.4,3319.0,0.0494996]
[1732319732571,5.5,3319.4,3318.7,2.12252288]
[1732319732782,5.0,3319.4,3318.8,0.26679087]
[1732319732938,4.95,3319.4,3318.9,0.21741569]
[1732319733144,4.95,3319.4,3319.0,0.04937518]
[1732319733341,4.95,3319.4,3318.7,2.12252288]
[1732319733541,4.95,3319.4,3318.8,0.2668067]
[1732319733742,4.95,3319.4,3318.9,0.21743152]
[1732319733946,4.95,3319.4,3318.7,2.12252288]
[1732319733947,4.95,3319.4,3319.0,0.21743152]
[1732319734168,4.95,3319.4,3318.7,2.12252288]
[1732319734375,4.95,3319.4,3318.8,0.26683549]
[1732319734564,5.495,3319.4,3318.9,0.21746031]
[1732319734781,5.495,3319.4,3319.0,0.21746031]
[1732319734948,5.495,3319.4,3318.8,0.21746031]
[1732319735275,5.495,3319.4,3318.9,0.21746207]
[1732319735476,5.0,3319.4,3319.0,0.21746207]
[1732319735675,5.0,3319.4,3318.7,2.12252288]
[1732319735874,5.0,3319.4,3318.8,0.2175322]
[1732319736065,5.0,3319.4,3318.9,0.2175322]
[1732319736787,5.0,3319.4,3319.0,0.26690738]
[1732319737093,5.0,3319.4,3319.1,0.2175322]
[1732319737289,0.5,3319.3,3319.1,0.2175322]
[1732319737591,0.5,3319.3,3319.2,0.04937518]
[1732319737893,5.0,3319.4,3318.7,2.12252288]
[1732319738098,5.0,3319.4,3319.2,0.04937518]
[1732319738391,5.0,3319.4,3319.3,0.04937518]
[1732319738695,0.5,3319.4,3318.7,2.12252288]
[1732319738876,0.7598,3319.7,3319.3,0.04937518]
[1732319739066,0.7598,3319.7,3318.7,2.12252288]
[1732319739269,0.7598,3319.7,3319.4,0.04937518]
[1732319739565,0.8282,3319.2,3318.4,0.78]
[1732319739909,0.8282,3319.2,3318.5,0.21782403]
[1732319740052,0.8282,3319.2,3318.6,0.21782403]
[1732319740250,0.8282,3319.2,3318.7,0.21782403]
[1732319740688,5.0,3319.1,3318.4,2.08382288]
[1732319740852,5.0,3319.1,3318.8,0.04937518]
[1732319741052,5.0,3319.1,3318.4,2.08382288]
[1732319741254,5.0,3319.1,3318.9,0.04937518]
[1732319741466,5.0,3319.1,3318.4,2.08382288]
[1732319741670,0.8282,3319.2,3319.0,0.04937518]
[1732319741895,0.8282,3319.2,3318.4,2.08382288]
[1732319742056,0.8282,3319.2,3319.1,0.04937518]
[1732319742481,0.8282,3319.2,3318.4,2.08382288]
[1732319742755,5.8282,3319.2,3318.5,0.42613459]
[1732319742981,5.8282,3319.2,3318.6,0.26712748]
[1732319743183,5.8282,3319.2,3318.6,0.04937518]
[1732319744066,5.8282,3319.2,3318.7,0.21772279]
[1732319744267,5.8282,3319.2,3318.6,0.04937518]
[1732319744489,5.8282,3319.2,3318.8,0.04940595]
[1732319744667,5.8282,3319.2,3318.6,1.53798092]
[1732319744860,5.8282,3319.2,3318.9,0.04940595]
[1732319745061,5.8282,3319.2,3318.6,1.53798092]
[1732319745062,5.8282,3319.2,3318.6,1.30382288]
[1732319745298,5.8282,3319.2,3319.0,0.04940595]
[1732319745499,5.8282,3319.2,3318.6,1.30382288]
[1732319745700,5.8282,3319.2,3319.1,0.04940595]
[1732319745913,5.8282,3319.2,3318.6,1.30382288]
[1732319746114,5.8282,3319.2,3319.1,0.04940595]
[1732319746407,5.8282,3319.2,3318.6,1.30382288]
[1732319746580,5.0,3319.0,3318.7,0.26710607]
[1732319746786,5.0,3319.0,3318.8,0.21770012]
[1732319746983,5.0,3319.0,3318.6,1.30382288]
[1732319747185,5.0,3319.0,3318.7,0.04940595]
[1732319749011,5.0,3319.0,3318.4,2.08382288]
[1732319749328,5.0,3319.0,3318.5,0.04940595]
[1732319749690,5.0,3319.1,3318.5,0.04940595]
[1732319751732,5.0,3319.1,3318.8,0.7852]
[1732319752235,5.0,3319.1,3318.9,0.04940595]
[1732319752532,5.0,3319.0,3318.9,0.04940595]
[1732319752737,5.0,3319.0,3318.8,0.7852]
[1732319753525,5.0,3319.0,3318.4,2.06082288]
[1732319753887,5.0,3319.0,3318.5,0.04940595]
[1732319755198,5.0,3319.0,3318.4,0.757]
[1732319755420,5.57562,3319.0,3318.5,0.04939255]
[1732319755806,5.57562,3319.0,3318.2,2.06082288]
[1732319756095,5.57562,3319.0,3318.3,0.04939255]
[1732319756497,0.633182,3318.9,3318.3,0.04939255]
[1732319756803,5.0,3318.6,3318.3,0.04939255]
[1732319758605,5.0,3318.6,3318.4,1.30382288]
[1732319758804,5.0,3318.6,3318.5,0.0494474]
[1732319759256,5.0,3318.6,3318.5,0.8064474]
[1732319759605,5.0,3319.0,3318.5,0.8064474]
[1732319764041,5.0,3319.0,3318.6,1.30382288]
[1732319764525,5.0,3319.1,3318.7,0.0494474]
[1732319766437,5.0,3319.1,3318.9,0.757]
[1732319766620,5.0,3319.3,3318.9,0.757]
[1732319766814,5.0,3319.3,3319.0,0.04943405]
[1732319767526,5.0,3319.3,3319.0,1.35325693]
[1732319767732,0.7562,3319.6,3319.0,1.56428262]
[1732319767733,5.0,3319.5,3319.0,1.56428262]
[1732319768956,5.0,3319.5,3319.0,0.26045974]
[1732319769131,5.0,3319.5,3319.0,0.04943405]
[1732319769547,5.0,3319.4,3319.0,0.04943405]
[1732319769721,4.96914834,3319.4,3319.0,0.04943405]
[1732319770632,5.0,3319.5,3319.0,0.04943405]
[1732319777463,4.99789,3319.5,3319.0,0.04943405]
[1732319777670,5.0,3319.5,3319.0,0.04943405]
[1732319778531,5.7562,3319.6,3319.0,0.04943405]
[1732319778770,5.7562,3319.6,3319.0,0.21102569]
[1732319779073,5.0,3319.6,3319.1,0.04775235]
[1732319780380,5.0,3319.6,3319.3,0.8293]
[1732319780590,5.0,3319.6,3319.5,0.8293]
[1732319780783,5.0,3319.6,3319.5,4.34291229]
[1732319780969,5.0,3319.6,3319.5,4.39057767]
[1732319781344,5.0,3319.6,3319.5,5.69440055]
[1732319781581,0.7953,3322.0,3320.8,2.13312288]
[1732319781788,0.20991229,3321.9,3320.8,2.13312288]
[1732319782080,0.20991229,3321.9,3320.9,0.0475798]
[1732319783185,0.7953,3322.0,3320.9,0.0475798]
[1732319783389,0.7953,3322.0,3321.0,1.30382288]
[1732319783547,0.7953,3322.0,3321.0,1.35133183]
[1732319784548,0.7953,3322.0,3321.0,0.04750895]
[1732319784751,0.20991229,3321.9,3320.8,2.13312288]
[1732319784951,0.20991229,3321.9,3321.1,0.04749024]
[1732319785154,0.20991229,3321.9,3320.8,2.13312288]
[1732319785394,0.20991229,3321.9,3321.2,0.04749024]
[1732319785553,0.20991229,3321.9,3320.8,2.13312288]
[1732319785751,0.20991229,3321.9,3321.3,0.04748089]
[1732319785981,0.20991229,3321.9,3320.8,2.13312288]
[1732319786201,0.20991229,3321.9,3321.4,0.04748089]
[1732319786382,0.20991229,3321.9,3321.3,0.8293]
[1732319786563,0.20991229,3321.9,3321.5,0.04748089]
[1732319786766,0.7953,3322.0,3321.3,0.8293]
[1732319787088,0.7953,3322.0,3321.6,0.04748089]
[1732319787269,0.7953,3322.0,3321.3,0.8293]
[1732319787607,0.7953,3322.0,3321.0,0.8293]
[1732319787747,1.00521229,3322.0,3321.4,0.04748089]
[1732319787954,1.00521229,3322.0,3321.0,0.8293]
[1732319788258,1.00521229,3322.0,3321.5,0.04748089]
[1732319788591,0.23090352,3321.9,3321.6,0.04748089]
[1732319788753,0.23090352,3321.9,3321.0,0.8293]
[1732319789101,0.23090352,3321.9,3321.7,0.04748089]
[1732319789254,0.23090352,3321.9,3321.0,0.8293]
[1732319789791,0.23090352,3321.9,3321.1,0.04748089]
[1732319790593,0.01,3323.2,3321.7,0.8293]
[1732319790799,0.7953,3322.7,3321.7,0.8293]
[1732319791093,2.09912288,3322.7,3321.7,0.8293]
[1732319791301,2.09912288,3322.7,3321.8,0.04724422]
[1732319791455,0.33011919,3322.6,3321.7,0.8293]
[1732319791656,0.7953,3322.5,3321.9,0.04723487]
[1732319791883,1.20382288,3322.0,3321.8,0.04564171]
[1732319792197,1.20382288,3322.0,3320.9,0.8293]
[1732319792198,0.7953,3321.9,3320.9,0.8293]
[1732319794200,0.7953,3321.9,3320.1,0.0301119]
[1732319794201,0.7799,3322.7,3321.2,0.8073]
[1732319794492,1.30382288,3322.6,3321.3,0.21111229]
[1732319794788,1.30382288,3322.6,3321.4,0.8073]
[1732319795189,0.7799,3322.7,3321.4,2.11112288]
[1732319795376,0.1981969,3322.6,3321.6,1.30382288]
[1732319795580,0.7799,3322.7,3321.5,0.8073]
[1732319795801,0.7799,3322.7,3321.7,0.8073]
[1732319796408,0.20837229,3322.7,3321.9,0.8073]
[1732319796608,0.0498204,3323.1,3322.1,0.8073]
[1732319796978,0.0498204,3323.1,3322.2,0.04401246]
[1732319797203,0.63279244,3323.1,3322.2,0.04401246]
[1732319797978,0.63279244,3323.1,3322.1,0.8073]
[1732319798207,0.63279244,3323.1,3322.3,0.04401246]
[1732319798393,0.63279244,3323.1,3322.1,0.8073]
[1732319798599,0.63279244,3323.1,3322.4,0.04401246]
[1732319798779,0.63279244,3323.1,3322.1,0.8073]
[1732319798975,0.63279244,3323.1,3322.5,0.04401246]
[1732319799308,0.63279244,3323.1,3322.1,0.8073]
[1732319799677,0.63279244,3323.1,3322.2,0.04401246]
[1732319803492,0.63279244,3323.1,3322.3,0.8073]
[1732319803696,0.0498204,3323.1,3322.3,0.8073]
[1732319812432,0.7799,3323.0,3322.3,0.8073]
[1732319812724,0.7799,3323.0,3322.1,0.8073]
[1732319813136,0.7799,3323.0,3322.2,0.04386073]
[1732319814122,0.77989981,3323.0,3322.2,0.04386073]
[1732319814292,3.5280957,3323.0,3322.2,0.04386073]
[1732319814511,0.35779161,3322.9,3321.8,0.7685]
[1732319818029,0.8261,3322.8,3321.8,0.7685]
[1732319821729,0.8261,3322.8,3322.0,0.7856]
[1732319822352,0.8261,3322.8,3322.1,0.04380217]
[1732319822646,0.0498204,3323.1,3322.1,0.04380217]
[1732319822940,1.65572203,3323.1,3322.2,0.7856]
[1732319823927,0.82962203,3323.1,3322.3,0.7856]
[1732319824140,0.0498204,3323.1,3322.3,0.7856]
[1732319824475,0.0498204,3323.1,3322.5,0.7856]
[1732319825107,0.0498204,3323.1,3322.6,0.04380217]
[1732319828730,0.0498204,3323.1,3322.7,0.7856]
[1732319829240,0.0498204,3323.1,3322.6,0.04380217]
[1732319829241,0.0498204,3323.1,3322.8,0.04370636]
[1732319829467,0.0498204,3323.1,3322.9,0.7856]
[1732319829698,0.0498204,3323.1,3322.9,0.82929971]
[1732319832295,0.0498204,3323.1,3322.9,3.04369971]
[1732319832595,0.0498204,3323.1,3323.0,1.34406443]
[1732319832896,0.0498204,3323.1,3323.0,1.38770162]
[1732319836895,0.0498204,3323.1,3323.0,0.80853719]
[1732319837328,0.0498204,3323.1,3323.0,0.85823719]
[1732319837628,0.0498204,3323.1,3323.0,0.8146]
[1732319837912,0.0498204,3323.1,3323.0,0.85819596]
[1732319838589,0.0498204,3323.1,3323.0,3.85819596]
[1732319839183,0.0498204,3323.1,3323.0,0.85819596]
[1732319840400,0.0498204,3323.1,3322.8,0.8146]
[1732319840596,0.0498204,3323.1,3323.0,0.04351749]
[1732319840818,0.0498204,3323.1,3322.8,0.8146]
[1732319841001,0.0498204,3323.1,3323.0,0.04351749]
[1732319841609,0.0498204,3323.1,3322.8,0.8146]
[1732319841809,0.0498204,3323.1,3323.0,0.0435534]
[1732319842010,0.0498204,3323.1,3322.8,0.8146]
[1732319842315,0.0498204,3323.1,3323.0,0.0435534]
[1732319842502,0.0498204,3323.1,3322.8,0.8146]
[1732319842708,0.0498204,3323.1,3322.4,0.8146]
[1732319842916,0.0498204,3323.1,3322.9,0.04356271]
[1732319843079,0.0498204,3323.1,3322.4,0.8146]
[1732319843283,0.0498204,3323.1,3323.0,0.04356271]
[1732319843519,0.0498204,3323.1,3322.4,0.8146]
[1732319843914,0.0498204,3323.1,3322.5,0.04356005]